Workbook

Sheet Steuerung
B2: Auswertung des Jahresabschlusses
D8: Finanzierung | I8: Kapitalumschlag
D12: Investierung | I12: bereinigter Jahresgewinn
D16: Konstitution | J16: Rentabilitäten
D20: Liquidität | J20: Cash-Flow

Sheet Bilanzen
B2: Aufbereitete Bilanzen
C4: Berichtsjahr | E4: Vorjahr | G4: Veränderungen
B5: Aktiva | C5: € | D5: % | E5: € | F5: % | G5: €
B6: Anlagevermögen | C6: =C7+C8 -> 1920000 | D6: =C6/$C$13 -> 0.4403669725 | E6: =E7+E8 -> 1620000 | F6: =E6/$E$13 -> 0.4090909091 | G6: =C6-E6 -> 300000
B7: Sachanlagen | C7: 1660000 | D7: =C7/$C$13 -> 0.380733945 | E7: 1420000 | F7: =E7/$E$13 -> 0.3585858586 | G7: =C7-E7 -> 240000
B8: Finanzanlagen | C8: 260000 | D8: 0.05963302752 | E8: 200000 | F8: 0.05050505051 | G8: 60000
B9: Umlaufvermögen | C9: =C10+C11+C12 -> 2440000 | D9: 0.5596330275 | E9: =E10+E11+E12 -> 2340000 | F9: 0.5909090909 | G9: 100000
B10: Vorräte | C10: 1200000 | D10: 0.2752293578 | E10: 1550000 | F10: 0.3914141414 | G10: -350000
B11: Forderungen | C11: 600000 | D11: 0.1376146789 | E11: 310000 | F11: 0.07828282828 | G11: 290000
B12: Flüssige Mittel | C12: 640000 | D12: 0.1467889908 | E12: 480000 | F12: 0.1212121212 | G12: 160000
B13: Gesamtvermögen | C13: =C6+C9 -> 4360000 | D13: 1 | E13: =E6+E9 -> 3960000 | F13: 1 | G13: 400000
C15: Berichtsjahr | E15: Vorjahr | G15: Veränderungen
B16: Passiva | C16: € | D16: % | E16: € | F16: % | G16: €
B17: Eigenkapital | C17: =C18+C19 -> 1800000 | D17: =C17/$C$26 -> 0.4128440367 | E17: =E18+E19 -> 1260000 | F17: =E17/$E$26 -> 0.3181818182 | G17: =C17-E17 -> 540000
B18: gez. Kapital/Gesellschafterkapital | C18: 1400000 | D18: =C18/$C$26 -> 0.3211009174 | E18: 1000000 | F18: =E18/$E$26 -> 0.2525252525 | G18: 400000
B19: Rücklagen | C19: 400000 | D19: 0.09174311927 | E19: 260000 | F19: 0.06565656566 | G19: 140000
B20: Langfristiges Fremdkapital | C20: =C21+C22 -> 2000000 | D20: 0.4587155963 | E20: =E21+E22 -> 1620000 | F20: 0.4090909091 | G20: 380000
B21: Rückstellungen | D21: 0 | F21: 0 | G21: 0
B22: langfristige Verbindlichkeiten | C22: 2000000 | D22: 0.4587155963 | E22: 1620000 | F22: 0.4090909091 | G22: 380000
B23: kurzfristige Verbindlichkeiten | C23: =C24+C25 -> 560000 | D23: 0.128440367 | E23: =E24+E25 -> 1080000 | F23: 0.2727272727 | G23: -520000
B24: Verbindlichkeiten aLL | C24: 560000 | D24: 0.128440367 | E24: 1080000 | F24: 0.2727272727 | G24: -520000
B25: sonst. kurzfr. Verbindlichkeiten | D25: 0 | F25: 0 | G25: 0
B26: Gesamtkapital | C26: =C17+C20+C23 -> 4360000 | D26: 1 | E26: =E17+E20+E23 -> 3960000 | F26: 1 | G26: 400000

Sheet BilanzKontenform
B2: Bilanzen in Kontenform
B4: Aktiva | C4: Bilanz im Berichtsjahr | E4: Passiva
B5: =Bilanzen!B6 -> Anlagevermögen | C5: =Bilanzen!C6 -> 1920000 | D5: =Bilanzen!B17 -> Eigenkapital | E5: =Bilanzen!C17 -> 1800000
B6: =Bilanzen!B7 -> Sachanlagen | C6: =Bilanzen!C7 -> 1660000 | D6: =Bilanzen!B18 -> gez. Kapital/Gesellschafterkapital | E6: =Bilanzen!C18 -> 1400000
B7: =Bilanzen!B8 -> Finanzanlagen | C7: =Bilanzen!C8 -> 260000 | D7: =Bilanzen!B19 -> Rücklagen | E7: =Bilanzen!C19 -> 400000
B8: =Bilanzen!B9 -> Umlaufvermögen | C8: =Bilanzen!C9 -> 2440000 | D8: =Bilanzen!B20 -> Langfristiges Fremdkapital | E8: =Bilanzen!C20 -> 2000000
B9: =Bilanzen!B10 -> Vorräte | C9: =Bilanzen!C10 -> 1200000 | D9: =Bilanzen!B21 -> Rückstellungen | E9: =Bilanzen!C21 -> 0
B10: =Bilanzen!B11 -> Forderungen | C10: =Bilanzen!C11 -> 600000 | D10: =Bilanzen!B22 -> langfristige Verbindlichkeiten | E10: =Bilanzen!C22 -> 2000000
B11: =Bilanzen!B12 -> Flüssige Mittel | C11: =Bilanzen!C12 -> 640000 | D11: =Bilanzen!B23 -> kurzfristige Verbindlichkeiten | E11: =Bilanzen!C23 -> 560000
D12: =Bilanzen!B24 -> Verbindlichkeiten aLL | E12: =Bilanzen!C24 -> 560000
D13: =Bilanzen!B25 -> sonst. kurzfr. Verbindlichkeiten | E13: =Bilanzen!C25 -> 0
B14: =Bilanzen!B13 -> Gesamtvermögen | C14: =Bilanzen!C13 -> 4360000 | D14: =Bilanzen!B26 -> Gesamtkapital | E14: =Bilanzen!C26 -> 4360000
B16: Aktiva | C16: Bilanz im Vorjahr | E16: Passiva
B17: =Bilanzen!B6 -> Anlagevermögen | C17: =Bilanzen!E6 -> 1620000 | D17: =Bilanzen!B17 -> Eigenkapital | E17: =Bilanzen!E17 -> 1260000
B18: =Bilanzen!B7 -> Sachanlagen | C18: =Bilanzen!E7 -> 1420000 | D18: =Bilanzen!B18 -> gez. Kapital/Gesellschafterkapital | E18: =Bilanzen!E18 -> 1000000
B19: =Bilanzen!B8 -> Finanzanlagen | C19: =Bilanzen!E8 -> 200000 | D19: =Bilanzen!B19 -> Rücklagen | E19: =Bilanzen!E19 -> 260000
B20: =Bilanzen!B9 -> Umlaufvermögen | C20: =Bilanzen!E9 -> 2340000 | D20: =Bilanzen!B20 -> Langfristiges Fremdkapital | E20: =Bilanzen!E20 -> 1620000
B21: =Bilanzen!B10 -> Vorräte | C21: =Bilanzen!E10 -> 1550000 | D21: =Bilanzen!B21 -> Rückstellungen | E21: =Bilanzen!E21 -> 0
B22: =Bilanzen!B11 -> Forderungen | C22: =Bilanzen!E11 -> 310000 | D22: =Bilanzen!B22 -> langfristige Verbindlichkeiten | E22: =Bilanzen!E11 -> 310000
B23: =Bilanzen!B12 -> Flüssige Mittel | C23: =Bilanzen!E12 -> 480000 | D23: =Bilanzen!B23 -> kurzfristige Verbindlichkeiten | E23: =Bilanzen!E23 -> 1080000
D24: =Bilanzen!B24 -> Verbindlichkeiten aLL | E24: =Bilanzen!E24 -> 1080000
D25: =Bilanzen!B25 -> sonst. kurzfr. Verbindlichkeiten | E25: =Bilanzen!G25 -> 0
B26: =Bilanzen!B13 -> Gesamtvermögen | C26: =Bilanzen!E13 -> 3960000 | D26: =Bilanzen!B26 -> Gesamtkapital | E26: =Bilanzen!E26 -> 3960000

Sheet Finanzierung
B2: Finanzierung | I2: Sie können einen Toleranzbereich zur Anzeige einer Verbesserung oder Verschlechterung des Grades der finanziellen Unabhängikeit in die gelben Felder eintragen. Veränderungen innerhalb dieses Bereiches werden dann nicht als Verschlechterung oder Verbesserung angezeigt.
C3: Berichtsjahr | D3: Vorjahr | E3: +/-
B4: Grad der finanziellen Unabhängigkeit | C4: =Bilanzen!C17/Bilanzen!C26 -> 0.4128440367 | D4: =Bilanzen!E17/Bilanzen!E26 -> 0.3181818182 | E4: =C4-D4 -> 0.09466221852
B5: Grad der Verschuldung | C5: =(Bilanzen!C20+Bilanzen!C23)/Bilanzen!C26 -> 0.5871559633 | D5: =(Bilanzen!E20+Bilanzen!E23)/Bilanzen!E26 -> 0.6818181818 | E5: =C5-D5 -> -0.09466221852
B6: Anteil des langfristigen Fremdkapitals | C6: =Bilanzen!C20/Bilanzen!C26 -> 0.4587155963 | D6: =Bilanzen!E20/Bilanzen!E26 -> 0.4090909091 | E6: 0.04962468724
B7: Anteil des kurzfristigen Fremdkapitals | C7: =Bilanzen!C23/Bilanzen!C26 -> 0.128440367 | D7: =Bilanzen!E23/Bilanzen!E26 -> 0.2727272727 | E7: -0.1442869058
B8: Grad der Selbstfinanzierung | C8: =Bilanzen!C19/Bilanzen!C26 -> 0.09174311927 | D8: =Bilanzen!E19/Bilanzen!E26 -> 0.06565656566 | E8: 0.02608655361
B10: Je größer das Eigenkapital im Verhältnis zum Fremdkapital ist, desto solider und | I10: Tolereranzbereich in %
B11: krisenfester ist die Fianzierung und desto geringer ist die Abhängikeit | I11: niedriger Wert | J11: hoher Wert
B12: von den Gläubigern! | C12: Tolenanzbereich = -1% bis 1% (unverändert) | I12: -1 | J12: 1
B14: Grad der finanziellen Unabhängigkeit | C14: =IF(E4>J12%,"verbessert",(IF(E4<I12%,"verschlechtert","unverändert"))) -> verbessert
B15: Grad der Verschuldung | C15: =IF(E5<I12%,"gesunken",(IF(E5>J12%,"gestiegen","unverändert"))) -> gesunken
B16: Grad der Selbstfinanzierung | C16: =IF(E8>J12%,"gestiegen",(IF(E8<I12%,"gesunken","unverändert"))) -> gestiegen
B18: Einfluss auf die Liquidität durch Änderung des kurzfristigen Fremdkapitals | C18: =IF(C7<D7,"positiv","negativ") -> positiv

Sheet Investierung
B2: Investierung | J2: Sie können einen Toleranzbereich zur Anzeige einer Erfüllung des Deckungsgrades II (Goldene Bilanzregel) in die gelben Felder eintragen. Veränderungen innerhalb dieses Bereiches werden dann nicht als Erfüllung oder Nichterfüllung der Goldenen Bilanzregel angezeigt.
C3: Berichtsjahr | D3: Vorjahr | E3: Veränderung
B4: Deckungsgrad I | C4: =Bilanzen!C17/Bilanzen!C6 -> 0.9375 | D4: =Bilanzen!E17/Bilanzen!E6 -> 0.7777777778 | E4: =C4-D4 -> 0.1597222222
B5: Deckungsgrad II | C5: =(Bilanzen!C17+Bilanzen!C20)/Bilanzen!C6 -> 1.979166667 | D5: =(Bilanzen!E17+Bilanzen!E20)/Bilanzen!E6 -> 1.777777778 | E5: =C5-D5 -> 0.2013888889
B7: Das Anlagevermögen sollte durch langfristiges Kapital gedeckt sein. Der Deckungsgrad I entspricht dem
B8: Verhältnis von Eigenkapital zu Anlagevermögen. Der Deckungsgrad II entspricht dem Verhältnis von
B9: Eigenkapital und langfristigem Fremdkapital. Er sollte über 100% liegen. (Goldene Bilanzregel) | J9: Tolereranzbereich in %
J10: niedriger Wert | K10: hoher Wert
B11: Deckungsgrad I | C11: =IF(C4>D4,"verbessert",(IF(C4<D4,"verschlechtert","unverändert"))) -> verbessert | J11: 98 | K11: 102
B12: Deckungsgrad II | C12: =IF(C5>D5,"verbessert",(IF(C5<D5,"verschlechtert","unverändert"))) -> verbessert | J12: =IF(J11>K11,"Toleranzbereich ungültig!","") -> 
B14: Vermögens-Deckungsrechnung | C14: Berichtsjahr | D14: Vorjahr | E14: Veränderung
B15: Eigenkapital | C15: =Bilanzen!C17 -> 1800000 | D15: =Bilanzen!E17 -> 1260000 | E15: =C15-D15 -> 540000
B16: - Anlagevermögen | C16: =Bilanzen!C6 -> 1920000 | D16: =Bilanzen!E6 -> 1620000 | E16: 300000
B17: = Über-/Unterdeckung durch Eigenkapital | C17: =C15-C16 -> -120000 | D17: =D15-D16 -> -360000 | E17: 240000
B18: + langfristiges Fremdkapital | C18: =Bilanzen!C20 -> 2000000 | D18: =Bilanzen!E20 -> 1620000 | E18: 380000
B19: = langfristiges Kapital zur Umlaufvermögensfinanzierung | C19: =C17+C18 -> 1880000 | D19: =D17+D18 -> 1260000 | E19: 620000
B20: - Umlaufvermögen | C20: =Bilanzen!C9 -> 2440000 | D20: =Bilanzen!E9 -> 2340000 | E20: 100000
B21: = kurzfristiges Kapital zur Umlaufvermögensfinanzierung | C21: =(C19-C20)*-1 -> 560000 | D21: =(D19-D20)*-1 -> 1080000 | E21: -520000

Sheet Konstitution
B2: Konstitution
C3: Berichtsjahr | D3: Vorjahr | E3: Veränderung
B4: Anlagenintensität | C4: =Bilanzen!C6/Bilanzen!C13 -> 0.4403669725 | D4: =Bilanzen!E6/Bilanzen!E13 -> 0.4090909091 | E4: =C4-D4 -> 0.03127606339 | F4: Anlagenintensität | J4: Tolereranzbereich in %
B5: Anteil des Umlaufververmögens | C5: =Bilanzen!C9/Bilanzen!C13 -> 0.5596330275 | D5: =Bilanzen!E9/Bilanzen!E13 -> 0.5909090909 | E5: -0.03127606339 | J5: niedriger Wert | K5: hoher Wert
B6: Vorratsquote | C6: =Bilanzen!C10/Bilanzen!C13 -> 0.2752293578 | D6: =Bilanzen!E10/Bilanzen!E13 -> 0.3914141414 | E6: -0.1161847836 | J6: -1 | K6: 1
B7: Forderungsquote | C7: =Bilanzen!C11/Bilanzen!C13 -> 0.1376146789 | D7: =Bilanzen!E11/Bilanzen!E13 -> 0.07828282828 | E7: 0.05933185062 | J7: =IF(J6>K6,"Tolerenzbereich ungültig","") -> 
B8: Anteil der flüssigen Mittel | C8: =Bilanzen!C12/Bilanzen!C13 -> 0.1467889908 | D8: =Bilanzen!E12/Bilanzen!E13 -> 0.1212121212 | E8: 0.02557686961
B9: Ausnutzungsgrad der Sachanlagen | C9: =C10/Bilanzen!C7 -> 5.138554217 | D9: =D10/Bilanzen!E7 -> 3.887323944 | E9: 1.251230273
B10: Gesamtleistung (lt. Erfolgsrechnung) | C10: =GuV!D9 -> 8530000 | D10: =GuV!F9 -> 5520000 | F10: Ausnutzungsgrad der Sachanlagen | J10: Tolereranzbereich
J11: niedriger Wert | K11: hoher Wert
B12: Die Anlagenintensität ist Maßstab für die Anpassungsfähigkeit und Flexibilität des Unternehmens | J12: =-0.5 -> -0.5 | K12: 0.5
B13: Eine hohe Anlagenintensität führt auch zu einer relativ hohen Belastung mit fixen Kosten | J13: =IF(J12>K12,"Tolerenzbereich ungültig!","") -> 
B14: Eine Erhöhung des Ausnutzungsgrades der Sachanlagen rechtfertigt eine Erhöhung der
B15: Anlagenintensität. Vorrats- und Forderungsquote geben Aufschluss über die Absatzlage des
B16: Unternehmens. (Vergleich mit den Umsatzerlösen ist notwendig)
B17: Anlagenintensität | C17: =IF(C4>D4,"gestiegen",(IF(C4<D4,"gesunken","unverändert"))) -> gestiegen | E17: Sie können jeweils einen Toleranzbereich für die Veränderung der Anlagenintensität, des Ausnutzungsgrades der Sachanlagen und für die Forderungsquote angeben. | F17: Forderungsquote | J17: Tolereranzbereich in %
B18: Anteil des Umlaufververmögens | C18: gesunken | J18: niedriger Wert | K18: hoher Wert
B19: Vorratsquote | C19: gesunken | J19: -1 | K19: 1
B20: Forderungsquote | C20: gestiegen | J20: =IF(J19>K19,"Tolerenzbereich ungültig!","") -> 
B21: Anteil der flüssigen Mittel | C21: gestiegen
B22: Ausnutzungsgrad der Sachanlagen | C22: gestiegen

Sheet Liquidität
B2: Liquidität
C3: Berichtsjahr | D3: Vorjahr | E3: Veränderung | F3: Liquidität 2. Grades | J3: Tolereranzbereich in %
B4: Liquidität 1. Grades (Barliquidität) | C4: =Bilanzen!C12/Bilanzen!C23 -> 1.142857143 | D4: =Bilanzen!E12/Bilanzen!E23 -> 0.4444444444 | E4: =C4-D4 -> 0.6984126984 | J4: niedriger Wert | K4: hoher Wert
B5: Liquidität 2. Grades (einzugsbedingt) | C5: =(Bilanzen!C12+Bilanzen!C11)/Bilanzen!C23 -> 2.214285714 | D5: =(Bilanzen!E12+Bilanzen!E11)/Bilanzen!E23 -> 0.7314814815 | E5: =C5-D5 -> 1.482804233 | J5: 95 | K5: 105
B6: Liquidität 3. Grades (umsatzbedingt) | C6: =Bilanzen!C9/Bilanzen!C23 -> 4.357142857 | D6: =Bilanzen!E9/Bilanzen!E23 -> 2.166666667 | E6: 2.19047619 | J6: =IF(J5>K5,"Tolerenzbereich ungültig!","") -> 
E7: Sie können für die Liquiditäten des 2. und 3. Grades jeweils Toleranzbereiche angeben.
B8: Liquidität bedeutete, dass die flüssigen Mittel ausreichen, die fälligen kurzfristigen
B9: Verbindlichkeiten zu decken. | F9: Liquidität 3. Grades | J9: Tolereranzbereich in %
B10: Die Liqudidität 2. Grades (einzugsbedingte Liquidität) sollte bei mindestens 100 % | J10: niedriger Wert | K10: hoher Wert
B11: liegen. (Volle Deckung der kurzfristigen Verbindlichkeiten durch liquide Mittel und | J11: 190 | K11: 210
B12: Forderungen.) Für die Liquidität 3. Grades (umsatzbedingte Liquidität) wird häufig | J12: =IF(J11>K11,"Tolerenzbereich ungültig!","") -> 
B13: eine Deckung von 200% empfohlen.
B15: Liquidität 1. Grades | C15: =IF(C4>D4,"verbessert",(IF(C4<D4,"verschlechtert","unverändert"))) -> verbessert
B16: Liquidität 2. Grades | C16: =IF(C5>D5,"verbessert",(IF(C5<D5,"verschlechtert","unverändert"))) -> verbessert
B17: Liquidität 3. Grades | C17: verbessert
B19: Liquiditäts-Staffelrechnung | C19: Berichtsjahr | D19: Vorjahr | E19: Veränderung
B20: Flüssige Mittel | C20: =Bilanzen!C12 -> 640000 | D20: =Bilanzen!E12 -> 480000 | E20: =C20-D20 -> 160000
B21: - Kurzfristige Verbindlichkeiten | C21: =Bilanzen!C23 -> 560000 | D21: =Bilanzen!E23 -> 1080000 | E21: =C21-D21 -> -520000
B22: = Über-/Unterdeckung (1. Stufe) | C22: =C20-C21 -> 80000 | D22: =D20-D21 -> -600000 | E22: 680000
B23: + Forderungen | C23: =Bilanzen!C11 -> 600000 | D23: =Bilanzen!E11 -> 310000 | E23: 290000
B24: = Über-/Unterdeckung (2. Stufe) | C24: =C22+C23 -> 680000 | D24: =D22+D23 -> -290000 | E24: 970000
B25: + Vorräte | C25: =Bilanzen!C10 -> 1200000 | D25: =Bilanzen!E10 -> 1550000 | E25: -350000
B26: = Über-/Unterdeckung (3. Stufe) | C26: =C24+C25 -> 1880000 | D26: =D24+D25 -> 1260000 | E26: 620000

Sheet GuV
B2: Erfolgsrechnung
C4: Berichtsjahr | E4: Vorjahr
C5: € | D5: € | E5: € | F5: €
B6: 1. Umsatzerlöse | D6: 8250000 | F6: 5500000
B7: 2. + Bestandserhöhungen an Erzeugnissen | C7: 280000 | E7: 20000
B8: - Bestandsminderungen an Erzeugnissen | C8: 0 | D8: =C7-C8 -> 280000 | E8: 0 | F8: =E7-E8 -> 20000
B9: 3. Gesamtleistung (betriebliche Erträge) | D9: =D6+D8 -> 8530000 | F9: =F6+F8 -> 5520000
B10: 4. Sonstiger Ertrag | D10: 25000 | F10: 23000
B11: 5. Materialaufwand | C11: 5168000 | E11: 3036000
B12: 6. Personalaufwand | C12: 2550000 | E12: 1892000
B13: 7. Abschreibungen | C13: 260000 | E13: 170000
B14: 8. Sonstiger Aufwand | C14: 120000 | D14: =- SUM(C11:C14) -> -8098000 | E14: 120000 | F14: =-SUM(E11:E14) -> -5218000
B15: 9. Zinserträge | C15: 12000 | E15: 4000
B16: 10. Zinsaufwendungen | C16: 130000 | D16: =C15-C16 -> -118000 | E16: 180000 | F16: =E15-E16 -> -176000
B17: 11. Ergebnis der gewöhnlichen Geschäftstatigkeit | D17: =SUM(D9:D16) -> 339000 | F17: =SUM(F9:F16) -> 149000
B18: 12. außerordentlicher Ertrag | C18: 50000 | E18: 30000
B19: 13. außerordentlicher Aufwand | C19: 60000 | E19: 40000
B20: 14. außerordentliches Ergebnis | D20: =C18-C19 -> -10000 | F20: =E18-E19 -> -10000
B21: 15. Steuern | D21: 29000 | F21: 19000
B22: 16. Jahresüberschuss | D22: =D17+D20-D21 -> 300000 | F22: =F17+F20-F21 -> 120000
B23: 17. Einstellung in Rücklagen | D23: 140000 | F23: 90000
B24: 18. Bilanzgewinn | D24: =D22-D23 -> 160000 | F24: =F22-F23 -> 30000

Sheet Kapitalumschlag
B2: Kapitalumschlag
C3: Berichtsjahr | D3: Vorjahr | E3: Veränderung | G3: Eigenkapital- | K3: Tolereranzbereich
B4: Eigenkapital am 1. Januar | C4: =Bilanzen!E17 -> 1260000 | D4: 1170000 | E4: =C4-D4 -> 90000 | G4: umschlagshäufigkeit | K4: niedriger Wert | L4: hoher Wert
B5: Eigenkapital am 31. Dezember | C5: =Bilanzen!C17 -> 1800000 | D5: =Bilanzen!E17 -> 1260000 | E5: =C5-D5 -> 540000 | K5: -0.1 | L5: 0.1
B6: Durchschnittliches Eigenkapital | C6: =(C4+C5)/2 -> 1530000 | D6: =(D4+D5)/2 -> 1215000 | E6: 315000
B7: Umsatzerlöse lt. Erfolgsrechnung | C7: =GuV!D6 -> 8250000 | D7: =GuV!F6 -> 5500000 | E7: 2750000
B8: Gesamtkapital am 1. Januar | C8: =Bilanzen!E26 -> 3960000 | D8: 3500000 | E8: 460000
B9: Gesamtkapital am 31. Dezember | C9: =Bilanzen!C26 -> 4360000 | D9: =Bilanzen!E26 -> 3960000 | E9: 400000
B10: Durchschnittliches Gesamtkapital | C10: =(C8+C9)/2 -> 4160000 | D10: =(D8+D9)/2 -> 3730000 | E10: 430000 | G10: Gesamtkapital- | K10: Tolereranzbereich
B11: Eigenkapital-Umschlagshäufigkeit | C11: =C7/C6 -> 5.392156863 | D11: =D7/D6 -> 4.526748971 | E11: 0.8654078916 | F11: =IF(E11>L5,"gestiegen",(IF(E11<K5,"gesunken","unverändert"))) -> gestiegen | G11: umschlagshäufigkeit | K11: niedriger Wert | L11: hoher Wert
B12: Gesamtkapital-Umschlagshäufigkeit | C12: =C7/C10 -> 1.983173077 | D12: =D7/D10 -> 1.474530831 | E12: 0.5086422458 | F12: =IF(E12>L12,"gestiegen",(IF(E12<K12,"gesunken","unverändert"))) -> gestiegen | K12: -0.1 | L12: 0.1
B13: Eigenkapital-Umschlagsdauer in Tagen | C13: =360/C11 -> 66.76363636 | D13: =360/D11 -> 79.52727273 | E13: -12.76363636 | F13: =IF(C13>D13,"gestiegen",(IF(C13<D13,"gesunken","unverändert"))) -> gesunken
B14: Gesamtkapital-Umschlagsdauer in Tagen | C14: =360/C12 -> 181.5272727 | D14: =360/D12 -> 244.1454545 | E14: -62.61818182 | F14: =IF(C14>D14,"gestiegen",(IF(C14<D14,"gesunken","unverändert"))) -> gesunken
B16: Eigenkaptial-Umschlagshäufigkeit = Umsatzerlöse/Durchschnittliches Eigenkapital | E16: Sie können Toleranzbereiche für Eigenkapital- und Gesamtkapitalumschlagshäufigkeit angeben. Verschlechterungen und Verbesserungen werden nur angezeigt, wenn die aktuellen Zahlen außerhalb des Toleranzbereiches liegen.
B17: Gesamtkapital-Umschlagshäufigkeit = Umsatzerlöse/Durchschnittliches Gesamtkapital
B18: Eigenkapital-Umschlagsdauer = 360/Eigenkapital-Umschlagshäufigkeit
B19: Gesamtkapital-Umschlagsdauer = 360/Gesamtkapital-Umschlagshäufigkeit

Sheet Jahresgewinn
B2: Bereiniger Jahresgewinn
C3: Berichtsjahr | D3: Vorjahr | E3: Veränderung | F3: Gewinnerwartung | J3: Tolereranzbereich
B4: Jahresüberschuss lt. Erfolgsrechnung | C4: =GuV!D22 -> 300000 | D4: =GuV!F22 -> 120000 | E4: =C4-D4 -> 180000 | J4: niedriger Wert | K4: hoher Wert
B5: + außerordentliche Aufwendungen | C5: =GuV!C19 -> 60000 | D5: =GuV!E19 -> 40000 | E5: =C5-D5 -> 20000 | J5: -20000 | K5: 20000
B6: - außerordentliche Erträge | C6: =GuV!C18 -> 50000 | D6: =GuV!E18 -> 30000 | E6: 20000 | J6: =IF(J5>K5,"Toleranzbereich ungültig!","") -> 
B7: - Unternehmerlohn bei e.K, OHG, KG | C7: 0 | D7: 0 | E7: 0
B8: = bereinigter Jahresgewinn | C8: =C4+C5-C6-C7 -> 310000 | D8: =D4+D5-D6-D7 -> 130000 | E8: 180000
J9: Sie können Ihre Zielvorstellungen für die Gewinnentwicklung definieren, indem Sie einen Toleranzbereich für die Gewinnveränderng angeben.
B10: Der Jahresüberschuss wird um Aufwendungen und Erträge bereinigt, die den Charakter der Einmaligkeit haben. Bei
B11: Einzelunternehmen und Personenengesellschaften wird der Jahresüberschuss noch um einen Unternehmerlohn gekürzt.
B12: Nur dann ist ein Vergleich mit Kapitalgesellschaften, deren Geschäftsführer Gehälter beziehen, die als Aufwand schon den
B13: Jahresgewinn gemindert haben, möglich.

Sheet Rentabilitäten
B2: Rentabilitäten
C3: Berichtsjahr | D3: Vorjahr | E3: Veränderung | F3: Eigenkapitalrentabilität | J3: Tolereranzbereich in %
B4: Eigenkapitalrentabilität | C4: =Jahresgewinn!C8/Kapitalumschlag!C6 -> 0.2026143791 | D4: =Jahresgewinn!D8/Kapitalumschlag!D6 -> 0.1069958848 | E4: =C4-D4 -> 0.09561849431 | J4: niedriger Wert | K4: hoher Wert
B5: Gesamtkapitalrentabilität | C5: =(Jahresgewinn!C8+GuV!C16)/Kapitalumschlag!C10 -> 0.1057692308 | D5: =(Jahresgewinn!D8+GuV!E16)/Kapitalumschlag!D10 -> 0.08310991957 | E5: =C5-D5 -> 0.0226593112 | J5: -1 | K5: 1
B6: Umsatzrentabilität | C6: =Jahresgewinn!C8/GuV!D6 -> 0.03757575758 | D6: =Jahresgewinn!D8/GuV!F6 -> 0.02363636364 | E6: =C6-D6 -> 0.01393939394 | J6: =IF(J5>K5,"Tolerenzbereich ungültig!","") -> 
B8: Vergleicht man die Eigenkapitalrentabilität mit einem landesüblichen Zinssatz für langfristig
B9: angelegtes Geld, so stellt der Überschuss der Eigenkapitalverzinsung die Risikoprämie für das | G9: Umsatzrentabilität | J9: Tolereranzbereich in %
B10: Unternehmerwagnis dar. | J10: niedriger Wert | K10: hoher Wert
B11: Solange der Zinssatz für Fremdkapital unter der Gesamtkapitalrentabiltitä liegt, kann durch | J11: -0.25 | K11: 0.25
B12: Aufnahme von Fremdkapital die Eigenkapitalrentabilität erhöht werden. Unsicherheit: Die Gesamt- | J12: =IF(J11>K11,"Tolerenzbereich ungültig!","") -> 
B13: kapitalrentabilität des Folgejahres ist noch nicht bekannt.
B15: Zins für langfristige Geldanlagen | C15: 0.06 | D15: Sie können für die Veränderung der Rentabilitäten und zur Beurteilung des Risikos einer Fremdkapialaufnahme Toleranzbereiche angeben. Die Toleranzbereiche für die Rentabilitäten beziehen sich auf die Veränderungen zum Vorjahr. Der Toleranzbereich für den Leverage-Effekt bezieht sich auf die Differenz zwischen Fremdkapitalzinssatz und Gesamtkapitalrentabilität. | F15: Gesamtkapitalrentabiltität | J15: Tolereranzbereich in %
B16: Fremdkapitalzinssatz | C16: 0.03 | J16: niedriger Wert | K16: hoher Wert
B17: Risikoprämie (Unternehmerwagnis) | C17: =C4-C15 -> 0.1426143791 | J17: -0.5 | K17: 0.5
B18: Differenz zwischen Gesamtkapital- | C18: =C5-C16 -> 0.07576923077 | J18: =IF(J17>K17,"Tolerenzbereich ungültig!","") -> 
B19: rentabilität und Fremdkapitalzinssatz
B20: Erhöhung der Eigenkapitalrentabilität | C20: =IF(C18>K23%,"geringes Risiko",IF(AND(C18<=K23%,C18>J23%),"mittleres Risiko","hohes Risiko")) -> geringes Risiko
B21: durch Kreditaufnahme | F21: Leverage-Effekt | J21: Tolereranzbereich in %
J22: niedriger Wert | K22: hoher Wert
J23: 1 | K23: 2
J24: =IF(J23>K23,"Tolerenzbereich ungültig!","") -> 

Sheet Cashflow
B2: Cashflow
C3: Berichtsjahr | D3: Vorjahr | E3: Veränderung | F3: Cashflow | J3: Tolereranzbereich in €
B4: Jahresüberschuss lt. Erfolgsrechnung | C4: =GuV!D22 -> 300000 | D4: =GuV!F22 -> 120000 | E4: =C4-D4 -> 180000 | J4: niedriger Wert | K4: hoher Wert
B5: + Abschreibungen auf Anlagen | C5: =GuV!C13 -> 260000 | D5: =GuV!E13 -> 170000 | E5: =C5-D5 -> 90000 | J5: -10000 | K5: 10000
B6: + Zuführung zu den Rückstellungen | C6: =Bilanzen!G21 -> 0 | D6: 0 | E6: 0 | J6: =IF(J5>K5,"Toleranzbereich ungültig!","") -> 
B7: = Cashflow | C7: =SUM(C4:C6) -> 560000 | D7: =SUM(D4:D6) -> 290000 | E7: 270000
B8: Umsatzerlöse | C8: =GuV!D6 -> 8250000 | D8: =GuV!F6 -> 5500000 | E8: 2750000
B9: Cashflow-Umsatzverdiensrate | C9: =C7/C8 -> 0.06787878788 | D9: =D7/D8 -> 0.05272727273 | E9: 0.01515151515 | F9: Casflow-Umsatz- | J9: Tolereranzbereich in %
B10: Die Zuführung zu den Rückstellungen ergibt sich aus der Differenz zwischen Rückstellungen des Vorjahres und den Rückstellungen des | F10: verdienstrate | J10: niedriger Wert | K10: hoher Wert
B11: Berichtsjahres. (Vgl.Veränderung der Rückstellungen in der Bilanz.) Die Zuführung zu den Rückstellungen des Vorjahres muss eingegeben werden. | J11: -0.25 | K11: 0.25
J12: =IF(J11>K11,"Toleranzbereich ungültig!","") -> 
B13: Cashflow | C13: =IF($C$7>$D$7,"gestiegen",IF($C$7<$D$7,"gesunken","unverändert")) -> gestiegen
B14: Cashflow-Umsatzverdienstrate | C14: =IF($C$9>$D$9,"gestiegen",IF($C$9<$D$9,"gesunken","unverändert")) -> gestiegen
B16: Der Cashflow (Kassen-Zufluss) lässt erkennen, in welchem Umfang sich ein Unternehmen aus eigener Kraft | F16: Sie können für den Cashflow und die Cashflow-Umsatz-verdienstrate jeweils Toleranzbereich, bezogen auf die Veränderung, eingeben.
B17: finanziert. Die Cashflow-Umsatzverdienstrate gibt an, wie viel Prozent der Umsatzerlöse dem Unternehmen
B18: für Investititonen, Schuldentilgung und Dividendenzahlung frei zur Verfügung stehen. Sie ist Maßstab der
B19: Ertrags- und Selbstfinanzierungskraft.

Sheet Tabelle1
